[Event "Titled Tuesday Blitz February 28 Early 2023"]
[White "Golubev, Mikhail"]
[Black "Skvortsov, Andrei"]
[WhiteFideId "14100983"]
[BlackFideId "24108600"]
[WhiteElo "2374"]
[BlackElo "2259"]
[Result "0-1"]
[Round "07"]
[TimeControl "180+2"]
[Date "2023.02.28"]
[WhiteClock "0:00:01"]
[BlackClock "0:00:23"]

1. e4 {[%clk 0:03:00]}  d5 {[%clk 0:02:44]} 2. exd5 {[%clk 0:02:58]}  Qxd5 {[%clk 0:02:45]} 3. Nf3 {[%clk 0:02:58]}  Bg4 {[%clk 0:02:34]} 4. Be2 {[%clk 0:02:58]}  Nc6 {[%clk 0:02:32]} 5. d4 {[%clk 0:02:58]}  Nf6 {[%clk 0:02:25]} 6. c4 {[%clk 0:02:53]}  Qd7 {[%clk 0:02:23]} 7. Nc3 {[%clk 0:02:19]}  e6 {[%clk 0:02:15]} 8. Be3 {[%clk 0:02:09]}  O-O-O {[%clk 0:02:12]} 9. O-O {[%clk 0:01:12]}  Bxf3 {[%clk 0:02:10]} 10. Bxf3 {[%clk 0:01:13]}  Nxd4 {[%clk 0:02:10]} 11. Bxd4 {[%clk 0:01:12]}  Qxd4 {[%clk 0:02:10]} 12. Qa4 {[%clk 0:01:12]}  Bc5 {[%clk 0:02:02]} 13. Nb5 {[%clk 0:01:09]}  Qe5 {[%clk 0:01:39]} 14. Nxa7+ {[%clk 0:01:06]}  Bxa7 {[%clk 0:01:37]} 15. Qxa7 {[%clk 0:01:06]}  c6 {[%clk 0:01:37]} 16. b4 {[%clk 0:00:58]}  Qd4 {[%clk 0:01:32]} 17. Qa4 {[%clk 0:00:48]}  Kc7 {[%clk 0:01:26]} 18. Qa5+ {[%clk 0:00:40]}  Qb6 {[%clk 0:01:24]} 19. Qe5+ {[%clk 0:00:39]}  Kc8 {[%clk 0:01:24]} 20. b5 {[%clk 0:00:37]}  c5 {[%clk 0:01:06]} 21. a4 {[%clk 0:00:33]}  Qc7 {[%clk 0:01:04]} 22. Qg5 {[%clk 0:00:27]}  Rhg8 {[%clk 0:01:04]} 23. a5 {[%clk 0:00:26]}  h6 {[%clk 0:01:04]} 24. Qe3 {[%clk 0:00:22]}  Rd4 {[%clk 0:01:02]} 25. a6 {[%clk 0:00:21]}  bxa6 {[%clk 0:00:29]} 26. bxa6 {[%clk 0:00:22]}  Ng4 {[%clk 0:00:28]} 27. Bxg4 {[%clk 0:00:16]}  Rxg4 {[%clk 0:00:29]} 28. a7 {[%clk 0:00:15]}  Kd7 {[%clk 0:00:26]} 29. h3 {[%clk 0:00:02]}  Rd4 {[%clk 0:00:23]} 30. a8=Q {[%clk 0:00:01]}  Rxa8 {[%clk 0:00:23]} 0-1


[Site "https://www.chess.com"]

[Event "Titled Tuesday Blitz February 28 Early 2023"]
[White "Fieberg, Samuel"]
[Black "Domingo Nunez, Ruben"]
[WhiteFideId "12901717"]
[BlackFideId "22245570"]
[WhiteElo "2467"]
[BlackElo "2404"]
[Result "0-1"]
[Round "07"]
[TimeControl "180+2"]
[Date "2023.02.28"]
[WhiteClock "0:00:06"]
[BlackClock "0:01:23"]

1. c4 {[%clk 0:02:56]}  g6 {[%clk 0:03:00]} 2. g3 {[%clk 0:02:56]}  Bg7 {[%clk 0:03:01]} 3. Bg2 {[%clk 0:02:55]}  d6 {[%clk 0:03:02]} 4. d4 {[%clk 0:02:45]}  Nf6 {[%clk 0:03:03]} 5. h3 {[%clk 0:02:46]}  O-O {[%clk 0:03:03]} 6. Nc3 {[%clk 0:02:45]}  Nbd7 {[%clk 0:03:04]} 7. e4 {[%clk 0:02:39]}  c5 {[%clk 0:03:05]} 8. d5 {[%clk 0:02:39]}  Rb8 {[%clk 0:03:05]} 9. Nge2 {[%clk 0:02:38]}  a6 {[%clk 0:03:06]} 10. a4 {[%clk 0:02:31]}  Ne8 {[%clk 0:03:06]} 11. a5 {[%clk 0:02:26]}  Nc7 {[%clk 0:03:06]} 12. Bg5 {[%clk 0:02:20]}  b5 {[%clk 0:03:03]} 13. axb6 {[%clk 0:02:19]}  Rxb6 {[%clk 0:03:02]} 14. Qc2 {[%clk 0:02:11]}  a5 {[%clk 0:02:53]} 15. Rxa5 {[%clk 0:01:48]}  Na6 {[%clk 0:02:53]} 16. Ra1 {[%clk 0:01:43]}  Nb4 {[%clk 0:02:54]} 17. Qd2 {[%clk 0:01:42]}  Ne5 {[%clk 0:02:54]} 18. b3 {[%clk 0:01:35]}  Nbd3+ {[%clk 0:02:54]} 19. Kf1 {[%clk 0:01:35]}  Rxb3 {[%clk 0:02:53]} 20. f4 {[%clk 0:01:32]}  Rb2 {[%clk 0:02:53]} 21. Qe3 {[%clk 0:01:25]}  f6 {[%clk 0:02:49]} 22. Bh4 {[%clk 0:01:09]}  g5 {[%clk 0:02:49]} 23. Kg1 {[%clk 0:00:40]}  gxh4 {[%clk 0:02:29]} 24. fxe5 {[%clk 0:00:39]}  Nxe5 {[%clk 0:02:30]} 25. g4 {[%clk 0:00:32]}  Nxc4 {[%clk 0:02:29]} 26. Qf2 {[%clk 0:00:29]}  Ne5 {[%clk 0:02:27]} 27. Qxh4 {[%clk 0:00:24]}  Qb6 {[%clk 0:02:17]} 28. Kh2 {[%clk 0:00:21]}  Ba6 {[%clk 0:02:18]} 29. Rhb1 {[%clk 0:00:19]}  Bxe2 {[%clk 0:02:16]} 30. Na4 {[%clk 0:00:12]}  Rxb1 {[%clk 0:02:01]} 31. Nxb6 {[%clk 0:00:11]}  Rxa1 {[%clk 0:02:02]} 32. Qf2 {[%clk 0:00:10]}  Ra2 {[%clk 0:02:00]} 33. Kg3 {[%clk 0:00:08]}  Rb8 {[%clk 0:01:58]} 34. Qf5 {[%clk 0:00:05]}  Rxb6 {[%clk 0:01:34]} 35. Qc8+ {[%clk 0:00:05]}  Bf8 {[%clk 0:01:33]} 36. Qe6+ {[%clk 0:00:06]}  Nf7 {[%clk 0:01:34]} 37. g5 {[%clk 0:00:05]}  Rb3+ {[%clk 0:01:27]} 38. Kf4 {[%clk 0:00:06]}  fxg5+ {[%clk 0:01:28]} 39. Kf5 {[%clk 0:00:06]}  Bh5 {[%clk 0:01:23]} 0-1


[Site "https://www.chess.com"]

[Event "Titled Tuesday Blitz February 28 Early 2023"]
[White "Poliakova, Varvara"]
[Black "Bas Mas, Jose Joaquin"]
[WhiteFideId "13518313"]
[BlackFideId "22219064"]
[WhiteElo "2075"]
[BlackElo "2233"]
[Result "1-0"]
[Round "07"]
[TimeControl "180+2"]
[Date "2023.02.28"]
[WhiteClock "0:01:04"]
[BlackClock "0:00:43"]

1. e4 {[%clk 0:02:52]}  e6 {[%clk 0:02:59]} 2. d4 {[%clk 0:02:51]}  d5 {[%clk 0:03:00]} 3. e5 {[%clk 0:02:52]}  c5 {[%clk 0:02:59]} 4. c3 {[%clk 0:02:53]}  Nc6 {[%clk 0:03:00]} 5. Nf3 {[%clk 0:02:52]}  Qb6 {[%clk 0:03:01]} 6. a3 {[%clk 0:02:51]}  c4 {[%clk 0:03:00]} 7. Nbd2 {[%clk 0:02:49]}  Na5 {[%clk 0:03:00]} 8. Rb1 {[%clk 0:02:48]}  Bd7 {[%clk 0:03:00]} 9. Be2 {[%clk 0:02:44]}  Ne7 {[%clk 0:02:59]} 10. O-O {[%clk 0:02:42]}  Qc7 {[%clk 0:02:59]} 11. Qc2 {[%clk 0:02:31]}  Nc8 {[%clk 0:02:59]} 12. a4 {[%clk 0:02:30]}  Nb6 {[%clk 0:02:58]} 13. Ra1 {[%clk 0:02:26]}  Be7 {[%clk 0:02:54]} 14. b3 {[%clk 0:02:23]}  cxb3 {[%clk 0:02:45]} 15. Nxb3 {[%clk 0:02:24]}  Nxb3 {[%clk 0:02:39]} 16. Qxb3 {[%clk 0:02:25]}  O-O {[%clk 0:02:31]} 17. Bg5 {[%clk 0:02:24]}  Bc6 {[%clk 0:02:26]} 18. a5 {[%clk 0:02:22]}  Nc8 {[%clk 0:02:26]} 19. Bxe7 {[%clk 0:02:18]}  Nxe7 {[%clk 0:02:26]} 20. Bd3 {[%clk 0:02:15]}  Rac8 {[%clk 0:02:01]} 21. Qc2 {[%clk 0:02:13]}  h6 {[%clk 0:01:58]} 22. Rfb1 {[%clk 0:02:10]}  f5 {[%clk 0:01:46]} 23. exf6 {[%clk 0:02:04]}  Rxf6 {[%clk 0:01:47]} 24. Ne5 {[%clk 0:02:01]}  Be8 {[%clk 0:01:43]} 25. Rb3 {[%clk 0:01:51]}  Nc6 {[%clk 0:01:37]} 26. Ng4 {[%clk 0:01:47]}  Rf4 {[%clk 0:01:26]} 27. Qe2 {[%clk 0:01:45]}  Qf7 {[%clk 0:01:17]} 28. g3 {[%clk 0:01:43]}  Rf3 {[%clk 0:01:15]} 29. Kg2 {[%clk 0:01:36]}  Rxd3 {[%clk 0:01:09]} 30. Qxd3 {[%clk 0:01:37]}  h5 {[%clk 0:01:07]} 31. Ne5 {[%clk 0:01:34]}  Qf6 {[%clk 0:01:00]} 32. Rxb7 {[%clk 0:01:28]}  Nxe5 {[%clk 0:01:00]} 33. dxe5 {[%clk 0:01:29]}  Qxe5 {[%clk 0:01:01]} 34. Qd4 {[%clk 0:01:26]}  Qg5 {[%clk 0:00:56]} 35. h4 {[%clk 0:01:25]}  Qh6 {[%clk 0:00:52]} 36. Re1 {[%clk 0:01:18]}  Bg6 {[%clk 0:00:46]} 37. f3 {[%clk 0:01:11]}  Bf5 {[%clk 0:00:46]} 38. Re2 {[%clk 0:01:05]}  Qc1 {[%clk 0:00:43]} 39. Qxg7# {[%clk 0:01:04]} 1-0


[Site "https://www.chess.com"]

[Event "Titled Tuesday Blitz February 28 Early 2023"]
[White "Sourath Biswas"]
[Black "Dinu, Dumitru-Daniel"]
[WhiteFideId "35091484"]
[BlackFideId "1208403"]
[WhiteElo "2164"]
[BlackElo "2240"]
[Result "0-1"]
[Round "07"]
[TimeControl "180+2"]
[Date "2023.02.28"]
[WhiteClock "0:00:03"]
[BlackClock "0:00:20"]

1. d4 {[%clk 0:03:00]}  e6 {[%clk 0:02:59]} 2. Bf4 {[%clk 0:03:00]}  Nf6 {[%clk 0:02:56]} 3. e3 {[%clk 0:03:00]}  c5 {[%clk 0:02:56]} 4. Nf3 {[%clk 0:03:00]}  cxd4 {[%clk 0:02:57]} 5. exd4 {[%clk 0:03:01]}  d5 {[%clk 0:02:57]} 6. c3 {[%clk 0:03:01]}  Nc6 {[%clk 0:02:58]} 7. Nbd2 {[%clk 0:03:00]}  Bd6 {[%clk 0:02:58]} 8. Bg3 {[%clk 0:02:58]}  O-O {[%clk 0:02:58]} 9. Bd3 {[%clk 0:02:58]}  Re8 {[%clk 0:02:53]} 10. Ne5 {[%clk 0:02:55]}  Bxe5 {[%clk 0:02:47]} 11. dxe5 {[%clk 0:02:55]}  Nd7 {[%clk 0:02:47]} 12. Nf3 {[%clk 0:02:53]}  Nc5 {[%clk 0:02:43]} 13. Bc2 {[%clk 0:02:31]}  b6 {[%clk 0:02:43]} 14. O-O {[%clk 0:02:30]}  Ba6 {[%clk 0:02:42]} 15. Re1 {[%clk 0:02:30]}  Rc8 {[%clk 0:02:41]} 16. h4 {[%clk 0:02:28]}  h6 {[%clk 0:02:35]} 17. Nd4 {[%clk 0:02:25]}  Nxd4 {[%clk 0:02:33]} 18. Qxd4 {[%clk 0:02:20]}  Qe7 {[%clk 0:02:30]} 19. Rad1 {[%clk 0:02:04]}  Nd7 {[%clk 0:02:12]} 20. Qg4 {[%clk 0:01:56]}  Rc4 {[%clk 0:02:10]} 21. Rd4 {[%clk 0:01:51]}  Rxd4 {[%clk 0:02:11]} 22. Qxd4 {[%clk 0:01:38]}  Rc8 {[%clk 0:02:10]} 23. f4 {[%clk 0:01:20]}  Qc5 {[%clk 0:02:05]} 24. Bf2 {[%clk 0:01:15]}  Qxd4 {[%clk 0:02:05]} 25. Bxd4 {[%clk 0:01:16]}  Nb8 {[%clk 0:01:42]} 26. f5 {[%clk 0:01:06]}  Nc6 {[%clk 0:01:41]} 27. Bf2 {[%clk 0:01:02]}  Nb4 {[%clk 0:01:38]} 28. Bb1 {[%clk 0:00:38]}  Nd3 {[%clk 0:01:38]} 29. Bxd3 {[%clk 0:00:34]}  Bxd3 {[%clk 0:01:37]} 30. fxe6 {[%clk 0:00:35]}  fxe6 {[%clk 0:01:38]} 31. Bd4 {[%clk 0:00:31]}  Rf8 {[%clk 0:01:31]} 32. Re3 {[%clk 0:00:31]}  Rf1+ {[%clk 0:01:30]} 33. Kh2 {[%clk 0:00:31]}  Be4 {[%clk 0:01:30]} 34. Re2 {[%clk 0:00:30]}  Ra1 {[%clk 0:01:19]} 35. a3 {[%clk 0:00:31]}  Rf1 {[%clk 0:01:17]} 36. Rf2 {[%clk 0:00:31]}  Re1 {[%clk 0:01:10]} 37. a4 {[%clk 0:00:29]}  Bf5 {[%clk 0:01:05]} 38. Kg3 {[%clk 0:00:26]}  Ra1 {[%clk 0:01:04]} 39. b3 {[%clk 0:00:22]}  Rb1 {[%clk 0:01:01]} 40. b4 {[%clk 0:00:23]}  Ra1 {[%clk 0:01:01]} 41. a5 {[%clk 0:00:18]}  bxa5 {[%clk 0:01:01]} 42. b5 {[%clk 0:00:16]}  Rb1 {[%clk 0:01:00]} 43. Bxa7 {[%clk 0:00:09]}  Rxb5 {[%clk 0:00:59]} 44. Ra2 {[%clk 0:00:10]}  Kf7 {[%clk 0:00:53]} 45. Bd4 {[%clk 0:00:09]}  Kg6 {[%clk 0:00:49]} 46. Kf4 {[%clk 0:00:09]}  h5 {[%clk 0:00:48]} 47. g3 {[%clk 0:00:08]}  Be4 {[%clk 0:00:36]} 48. Ke3 {[%clk 0:00:08]}  Kf5 {[%clk 0:00:30]} 49. Kd2 {[%clk 0:00:04]}  Kg4 {[%clk 0:00:29]} 50. Ke3 {[%clk 0:00:02]}  Kxg3 {[%clk 0:00:27]} 51. Ba7 {[%clk 0:00:02]}  Kxh4 {[%clk 0:00:23]} 52. Kd4 {[%clk 0:00:02]}  Kg4 {[%clk 0:00:20]} 53. Bc5 {[%clk 0:00:03]}  h4 {[%clk 0:00:20]} 0-1


[Site "https://www.chess.com"]

[Event "Titled Tuesday Blitz February 28 Early 2023"]
[White "Domingo Nunez, Alejandro"]
[Black "Gutkin, Ilya"]
[WhiteFideId "22245561"]
[BlackFideId "16203470"]
[WhiteElo "2230"]
[BlackElo "2265"]
[Result "1-0"]
[Round "07"]
[TimeControl "180+2"]
[Date "2023.02.28"]
[WhiteClock "0:02:15"]
[BlackClock "0:01:34"]

1. e4 {[%clk 0:03:00]}  e6 {[%clk 0:03:00]} 2. Nf3 {[%clk 0:03:00]}  d5 {[%clk 0:02:59]} 3. Nc3 {[%clk 0:03:01]}  d4 {[%clk 0:02:59]} 4. Ne2 {[%clk 0:03:01]}  Nf6 {[%clk 0:02:59]} 5. Ng3 {[%clk 0:03:02]}  c5 {[%clk 0:02:57]} 6. Bc4 {[%clk 0:03:01]}  Nc6 {[%clk 0:02:50]} 7. O-O {[%clk 0:03:00]}  g6 {[%clk 0:02:49]} 8. a4 {[%clk 0:03:00]}  Bg7 {[%clk 0:02:49]} 9. d3 {[%clk 0:03:00]}  O-O {[%clk 0:02:49]} 10. Bd2 {[%clk 0:02:58]}  Nd7 {[%clk 0:02:49]} 11. Ne1 {[%clk 0:02:51]}  Kh8 {[%clk 0:02:42]} 12. f4 {[%clk 0:02:51]}  Nb6 {[%clk 0:02:41]} 13. Bb3 {[%clk 0:02:48]}  Bd7 {[%clk 0:02:29]} 14. a5 {[%clk 0:02:43]}  Nc8 {[%clk 0:02:28]} 15. e5 {[%clk 0:02:43]}  N8e7 {[%clk 0:02:25]} 16. Ne4 {[%clk 0:02:43]}  b6 {[%clk 0:02:19]} 17. axb6 {[%clk 0:02:34]}  axb6 {[%clk 0:02:20]} 18. Rxa8 {[%clk 0:02:35]}  Qxa8 {[%clk 0:02:20]} 19. Nf3 {[%clk 0:02:34]}  Nd5 {[%clk 0:02:09]} 20. Qe1 {[%clk 0:02:30]}  Nce7 {[%clk 0:02:06]} 21. g4 {[%clk 0:02:21]}  f5 {[%clk 0:01:38]} 22. exf6 {[%clk 0:02:21]}  Nxf6 {[%clk 0:01:37]} 23. Qh4 {[%clk 0:02:15]}  Nxe4 {[%clk 0:01:37]} 24. dxe4 {[%clk 0:02:15]}  Qxe4 {[%clk 0:01:34]} 25. Ng5 {[%clk 0:02:15]} 1-0


[Site "https://www.chess.com"]

[Event "Titled Tuesday Blitz February 28 Early 2023"]
[White "Janaszak, Dawid"]
[Black "Andreev, Konstantin"]
[WhiteFideId "1119206"]
[BlackFideId "24239305"]
[WhiteElo "2220"]
[BlackElo "2106"]
[Result "0-1"]
[Round "07"]
[TimeControl "180+2"]
[Date "2023.02.28"]
[WhiteClock "0:00:03"]
[BlackClock "0:00:04"]

1. c4 {[%clk 0:03:00]}  Nf6 {[%clk 0:02:59]} 2. d4 {[%clk 0:03:00]}  e6 {[%clk 0:02:59]} 3. g4 {[%clk 0:02:59]}  Nxg4 {[%clk 0:02:57]} 4. e4 {[%clk 0:02:59]}  Nf6 {[%clk 0:02:57]} 5. e5 {[%clk 0:02:57]}  Ng8 {[%clk 0:02:57]} 6. Nc3 {[%clk 0:02:56]}  d6 {[%clk 0:02:57]} 7. Nf3 {[%clk 0:02:55]}  dxe5 {[%clk 0:02:57]} 8. Nxe5 {[%clk 0:02:56]}  Nd7 {[%clk 0:02:55]} 9. Bf4 {[%clk 0:02:39]}  Nxe5 {[%clk 0:02:54]} 10. Bxe5 {[%clk 0:02:40]}  f6 {[%clk 0:02:54]} 11. Bg3 {[%clk 0:02:36]}  Bd6 {[%clk 0:02:53]} 12. Bd3 {[%clk 0:02:30]}  Ne7 {[%clk 0:02:53]} 13. Qh5+ {[%clk 0:02:24]}  g6 {[%clk 0:02:52]} 14. Qf3 {[%clk 0:02:23]}  f5 {[%clk 0:02:46]} 15. O-O-O {[%clk 0:02:21]}  Bd7 {[%clk 0:02:41]} 16. Bh4 {[%clk 0:02:20]}  O-O {[%clk 0:02:36]} 17. Rhg1 {[%clk 0:02:08]}  Qe8 {[%clk 0:02:35]} 18. c5 {[%clk 0:02:05]}  Bxh2 {[%clk 0:02:28]} 19. Rge1 {[%clk 0:01:49]}  Bc6 {[%clk 0:02:12]} 20. Qe3 {[%clk 0:01:34]}  Nd5 {[%clk 0:02:09]} 21. Nxd5 {[%clk 0:01:27]}  Bxd5 {[%clk 0:02:10]} 22. f4 {[%clk 0:01:25]}  Qa4 {[%clk 0:01:56]} 23. Rh1 {[%clk 0:01:11]}  Bxh1 {[%clk 0:01:31]} 24. Qxe6+ {[%clk 0:01:11]}  Rf7 {[%clk 0:01:24]} 25. Rxh1 {[%clk 0:00:51]}  Bxf4+ {[%clk 0:01:21]} 26. Kb1 {[%clk 0:00:50]}  Re8 {[%clk 0:01:17]} 27. Qd5 {[%clk 0:00:41]}  c6 {[%clk 0:01:14]} 28. Qf3 {[%clk 0:00:32]}  Qxd4 {[%clk 0:01:11]} 29. Bc2 {[%clk 0:00:30]}  Re3 {[%clk 0:01:08]} 30. Qf1 {[%clk 0:00:27]}  Be5 {[%clk 0:01:02]} 31. Qc1 {[%clk 0:00:25]}  Rd7 {[%clk 0:00:53]} 32. Rd1 {[%clk 0:00:21]}  Qxh4 {[%clk 0:00:33]} 33. Rxd7 {[%clk 0:00:21]}  Re1 {[%clk 0:00:33]} 34. Rd1 {[%clk 0:00:19]}  Bf4 {[%clk 0:00:31]} 35. Bb3+ {[%clk 0:00:17]}  Kf8 {[%clk 0:00:29]} 36. Qc2 {[%clk 0:00:14]}  Rxd1+ {[%clk 0:00:25]} 37. Qxd1 {[%clk 0:00:15]}  Be5 {[%clk 0:00:25]} 38. a3 {[%clk 0:00:11]}  Qd4 {[%clk 0:00:22]} 39. Qe2 {[%clk 0:00:11]}  Qe4+ {[%clk 0:00:21]} 40. Qxe4 {[%clk 0:00:11]}  fxe4 {[%clk 0:00:22]} 41. Bc2 {[%clk 0:00:11]}  e3 {[%clk 0:00:22]} 42. Bd3 {[%clk 0:00:10]}  Kg7 {[%clk 0:00:22]} 43. Kc2 {[%clk 0:00:10]}  Bd4 {[%clk 0:00:22]} 44. b4 {[%clk 0:00:11]}  g5 {[%clk 0:00:21]} 45. Be4 {[%clk 0:00:11]}  h5 {[%clk 0:00:21]} 46. Kd3 {[%clk 0:00:12]}  g4 {[%clk 0:00:18]} 47. b5 {[%clk 0:00:10]}  Bxc5 {[%clk 0:00:16]} 48. bxc6 {[%clk 0:00:11]}  bxc6 {[%clk 0:00:17]} 49. Bxc6 {[%clk 0:00:12]}  h4 {[%clk 0:00:17]} 50. Bd7 {[%clk 0:00:12]}  h3 {[%clk 0:00:16]} 51. Bxg4 {[%clk 0:00:12]}  h2 {[%clk 0:00:16]} 52. Bf3 {[%clk 0:00:12]}  Kf6 {[%clk 0:00:17]} 53. Ke2 {[%clk 0:00:12]}  Ke5 {[%clk 0:00:17]} 54. Kf1 {[%clk 0:00:13]}  Kd4 {[%clk 0:00:15]} 55. Ke2 {[%clk 0:00:11]}  Bd6 {[%clk 0:00:16]} 56. a4 {[%clk 0:00:10]}  Bf4 {[%clk 0:00:17]} 57. Bc6 {[%clk 0:00:10]}  Kc5 {[%clk 0:00:17]} 58. Bf3 {[%clk 0:00:10]}  Kb4 {[%clk 0:00:14]} 59. Bc6 {[%clk 0:00:10]}  Kc5 {[%clk 0:00:11]} 60. Bf3 {[%clk 0:00:10]}  Kd4 {[%clk 0:00:11]} 61. Bc6 {[%clk 0:00:09]}  Ke5 {[%clk 0:00:12]} 62. Bf3 {[%clk 0:00:09]}  Kf5 {[%clk 0:00:12]} 63. Bc6 {[%clk 0:00:09]}  a5 {[%clk 0:00:09]} 64. Bf3 {[%clk 0:00:07]}  Ke5 {[%clk 0:00:08]} 65. Kd3 {[%clk 0:00:07]}  Kd6 {[%clk 0:00:07]} 66. Ke2 {[%clk 0:00:06]}  Kc5 {[%clk 0:00:07]} 67. Bg2 {[%clk 0:00:06]}  Kb4 {[%clk 0:00:06]} 68. Bc6 {[%clk 0:00:06]}  h1=Q {[%clk 0:00:06]} 69. Bxh1 {[%clk 0:00:06]}  Kxa4 {[%clk 0:00:07]} 70. Kd3 {[%clk 0:00:04]}  Kb3 {[%clk 0:00:06]} 71. Bd5+ {[%clk 0:00:05]}  Kb2 {[%clk 0:00:06]} 72. Bc6 {[%clk 0:00:05]}  Ka3 {[%clk 0:00:05]} 73. Bb5 {[%clk 0:00:04]}  Kb4 {[%clk 0:00:04]} 74. Bd7 {[%clk 0:00:04]}  a4 {[%clk 0:00:05]} 75. Be6 {[%clk 0:00:04]}  Ka3 {[%clk 0:00:04]} 76. Bc4 {[%clk 0:00:03]}  Kb2 {[%clk 0:00:03]} 77. Bd5 {[%clk 0:00:03]}  a3 {[%clk 0:00:04]} 0-1


[Site "https://www.chess.com"]

[Event "Titled Tuesday Blitz February 28 Early 2023"]
[White "Martin Duque, Jesus"]
[Black "Petrova, Irina"]
[WhiteFideId "2208954"]
[BlackFideId "14124122"]
[WhiteElo "2305"]
[BlackElo "2084"]
[Result "1/2-1/2"]
[Round "07"]
[TimeControl "180+2"]
[Date "2023.02.28"]
[WhiteClock "0:00:15"]
[BlackClock "0:00:13"]

1. b3 {[%clk 0:03:00]}  d6 {[%clk 0:03:00]} 2. Bb2 {[%clk 0:02:51]}  e5 {[%clk 0:03:01]} 3. c4 {[%clk 0:02:50]}  Nc6 {[%clk 0:03:01]} 4. g3 {[%clk 0:02:51]}  f5 {[%clk 0:03:02]} 5. Nc3 {[%clk 0:02:51]}  Nf6 {[%clk 0:03:02]} 6. Bg2 {[%clk 0:02:51]}  g6 {[%clk 0:03:03]} 7. e3 {[%clk 0:02:50]}  Bg7 {[%clk 0:03:03]} 8. Nge2 {[%clk 0:02:50]}  O-O {[%clk 0:03:04]} 9. O-O {[%clk 0:02:50]}  g5 {[%clk 0:03:01]} 10. d3 {[%clk 0:02:43]}  Qe8 {[%clk 0:02:59]} 11. Rc1 {[%clk 0:02:41]}  Qg6 {[%clk 0:02:58]} 12. Nd5 {[%clk 0:02:40]}  Nxd5 {[%clk 0:02:23]} 13. cxd5 {[%clk 0:02:38]}  Nd8 {[%clk 0:02:20]} 14. Rxc7 {[%clk 0:02:37]}  f4 {[%clk 0:02:21]} 15. exf4 {[%clk 0:02:15]}  gxf4 {[%clk 0:02:22]} 16. Nxf4 {[%clk 0:02:15]}  Rxf4 {[%clk 0:02:21]} 17. gxf4 {[%clk 0:02:15]}  Bg4 {[%clk 0:02:15]} 18. f3 {[%clk 0:02:02]}  Bh3 {[%clk 0:02:13]} 19. Rf2 {[%clk 0:02:02]}  Nf7 {[%clk 0:02:08]} 20. Kh1 {[%clk 0:01:55]}  Bf5 {[%clk 0:02:04]} 21. Bf1 {[%clk 0:01:40]}  Kh8 {[%clk 0:01:52]} 22. Rg2 {[%clk 0:01:32]}  Qh5 {[%clk 0:01:51]} 23. Rxg7 {[%clk 0:01:26]}  Kxg7 {[%clk 0:01:50]} 24. fxe5 {[%clk 0:01:27]}  dxe5 {[%clk 0:01:41]} 25. Bxe5+ {[%clk 0:01:23]}  Kg8 {[%clk 0:01:41]} 26. Bg3 {[%clk 0:01:16]}  Rd8 {[%clk 0:01:32]} 27. d4 {[%clk 0:01:11]}  Be4 {[%clk 0:01:21]} 28. Be2 {[%clk 0:00:49]}  Bxd5 {[%clk 0:01:20]} 29. Kg1 {[%clk 0:00:45]}  Ng5 {[%clk 0:01:13]} 30. Be5 {[%clk 0:00:37]}  Nxf3+ {[%clk 0:00:58]} 31. Bxf3 {[%clk 0:00:33]}  Qxf3 {[%clk 0:00:59]} 32. Qxf3 {[%clk 0:00:30]}  Bxf3 {[%clk 0:01:00]} 33. Rg7+ {[%clk 0:00:30]}  Kf8 {[%clk 0:01:00]} 34. Rxh7 {[%clk 0:00:30]}  Ke8 {[%clk 0:00:55]} 35. h4 {[%clk 0:00:30]}  Rd7 {[%clk 0:00:55]} 36. Rh8+ {[%clk 0:00:28]}  Kf7 {[%clk 0:00:55]} 37. Kf2 {[%clk 0:00:29]}  Be4 {[%clk 0:00:50]} 38. Ke3 {[%clk 0:00:28]}  Bb1 {[%clk 0:00:49]} 39. a3 {[%clk 0:00:28]}  Kg6 {[%clk 0:00:47]} 40. h5+ {[%clk 0:00:28]}  Kg5 {[%clk 0:00:43]} 41. Bf4+ {[%clk 0:00:23]}  Kf6 {[%clk 0:00:37]} 42. h6 {[%clk 0:00:22]}  Rh7 {[%clk 0:00:37]} 43. Rb8 {[%clk 0:00:20]}  Ke6 {[%clk 0:00:35]} 44. Rd8 {[%clk 0:00:18]}  Ba2 {[%clk 0:00:32]} 45. d5+ {[%clk 0:00:18]}  Kf5 {[%clk 0:00:30]} 46. Rf8+ {[%clk 0:00:18]}  Kg6 {[%clk 0:00:30]} 47. d6 {[%clk 0:00:16]}  Bxb3 {[%clk 0:00:29]} 48. Kd4 {[%clk 0:00:15]}  Be6 {[%clk 0:00:28]} 49. Ke5 {[%clk 0:00:15]}  Bh3 {[%clk 0:00:27]} 50. Rf6+ {[%clk 0:00:15]}  Kh5 {[%clk 0:00:25]} 51. Re6 {[%clk 0:00:16]}  Bxe6 {[%clk 0:00:17]} 52. Kxe6 {[%clk 0:00:16]}  Kg4 {[%clk 0:00:17]} 53. d7 {[%clk 0:00:16]}  Rh8 {[%clk 0:00:16]} 54. Bc7 {[%clk 0:00:15]}  Rxh6+ {[%clk 0:00:16]} 55. Kd5 {[%clk 0:00:14]}  Rh8 {[%clk 0:00:15]} 56. d8=Q {[%clk 0:00:14]}  Rxd8+ {[%clk 0:00:15]} 57. Bxd8 {[%clk 0:00:15]}  Kf5 {[%clk 0:00:15]} 58. Bc7 {[%clk 0:00:15]}  Kf6 {[%clk 0:00:15]} 59. Kd6 {[%clk 0:00:15]}  Kf7 {[%clk 0:00:15]} 60. Bb8 {[%clk 0:00:16]}  Ke8 {[%clk 0:00:14]} 61. Kc7 {[%clk 0:00:16]}  b5 {[%clk 0:00:13]} 62. Bxa7 {[%clk 0:00:16]}  Ke7 {[%clk 0:00:13]} 63. Kc6 {[%clk 0:00:16]}  Kd8 {[%clk 0:00:12]} 64. Bb6+ {[%clk 0:00:15]}  Kc8 {[%clk 0:00:13]} 65. Bc7 {[%clk 0:00:15]}  b4 {[%clk 0:00:13]} 66. axb4 {[%clk 0:00:15]} 1/2-1/2


[Site "https://www.chess.com"]

[Event "Titled Tuesday Blitz February 28 Early 2023"]
[White "Begunov, Konstantin"]
[Black "Dragomirescu, Angela"]
[WhiteFideId "4118510"]
[BlackFideId "1209914"]
[WhiteElo "2118"]
[BlackElo "2171"]
[Result "1-0"]
[Round "07"]
[TimeControl "180+2"]
[Date "2023.02.28"]
[WhiteClock "0:00:38"]
[BlackClock "0:00:13"]

1. d4 {[%clk 0:03:00]}  Nf6 {[%clk 0:02:54]} 2. c4 {[%clk 0:02:59]}  g6 {[%clk 0:02:55]} 3. f3 {[%clk 0:02:59]}  Bg7 {[%clk 0:02:54]} 4. e4 {[%clk 0:02:59]}  O-O {[%clk 0:02:55]} 5. Nc3 {[%clk 0:02:59]}  d6 {[%clk 0:02:56]} 6. Be3 {[%clk 0:02:59]}  Nc6 {[%clk 0:02:56]} 7. Nge2 {[%clk 0:03:00]}  a6 {[%clk 0:02:56]} 8. a3 {[%clk 0:03:00]}  Na5 {[%clk 0:02:38]} 9. Nc1 {[%clk 0:02:41]}  Nd7 {[%clk 0:02:22]} 10. b4 {[%clk 0:02:35]}  Nc6 {[%clk 0:02:22]} 11. Nb3 {[%clk 0:02:34]}  e5 {[%clk 0:02:05]} 12. d5 {[%clk 0:02:28]}  Ne7 {[%clk 0:01:58]} 13. Qd2 {[%clk 0:02:22]}  f5 {[%clk 0:01:58]} 14. Be2 {[%clk 0:02:19]}  Nf6 {[%clk 0:01:58]} 15. O-O-O {[%clk 0:02:09]}  Bd7 {[%clk 0:01:53]} 16. Kb2 {[%clk 0:02:04]}  Qe8 {[%clk 0:01:34]} 17. c5 {[%clk 0:01:56]}  fxe4 {[%clk 0:01:19]} 18. fxe4 {[%clk 0:01:53]}  Ng4 {[%clk 0:01:16]} 19. Bxg4 {[%clk 0:01:49]}  Bxg4 {[%clk 0:01:17]} 20. Rdf1 {[%clk 0:01:49]}  Bd7 {[%clk 0:00:43]} 21. Rxf8+ {[%clk 0:01:41]}  Bxf8 {[%clk 0:00:37]} 22. cxd6 {[%clk 0:01:35]}  cxd6 {[%clk 0:00:37]} 23. Rc1 {[%clk 0:01:34]}  Rc8 {[%clk 0:00:37]} 24. Bb6 {[%clk 0:01:25]}  h5 {[%clk 0:00:31]} 25. Na5 {[%clk 0:01:25]}  Kh7 {[%clk 0:00:29]} 26. Rc2 {[%clk 0:01:19]}  Bh6 {[%clk 0:00:28]} 27. Qd3 {[%clk 0:01:14]}  Bb5 {[%clk 0:00:22]} 28. Nxb5 {[%clk 0:01:12]}  Rxc2+ {[%clk 0:00:23]} 29. Kxc2 {[%clk 0:01:09]}  axb5 {[%clk 0:00:21]} 30. Bc7 {[%clk 0:00:45]}  Qc8 {[%clk 0:00:20]} 31. Qc3 {[%clk 0:00:45]}  Qg4 {[%clk 0:00:19]} 32. Qf3 {[%clk 0:00:40]}  Qxf3 {[%clk 0:00:13]} 33. gxf3 {[%clk 0:00:41]}  Nc8 {[%clk 0:00:13]} 34. Nxb7 {[%clk 0:00:39]}  Bf4 {[%clk 0:00:13]} 35. h3 {[%clk 0:00:38]} 1-0


[Site "https://www.chess.com"]